NUMERO_MANDATO;RIGA_MANDATO;QUIET;IMPORTO_RIGA;IMPORTO_MANDATO;BENEFICIARIO;CIG;TITOLO_PAGAMENTO;DATA_MANDATO;CAPITOLO;ARTICOLO;NUMERO_IMPEGNO;TITOLO;DESCR_TITOLO;LIVELLO_II;DESCR_LIVELLO_II;LIVELLO_III;DESCR_LIVELLO_III;LIVELLO_IV;DESCR_LIVELLO_IV;LIVELLO_V;DESCR_LIVELLO_V;DATA_PAG_EFF
554;1;0;1;3;BANCO SARDEGNA; ;spese tesoreria;05/07/2019;1054;0;0;1;Spese correnti;3;Acquisto di beni e servizi;2;Acquisto di servizi;17;Servizi finanziari;2;Oneri per servizio di tesoreria;05/07/2019
554;2;0;1;3;BANCO SARDEGNA; ;spese tesoreria;05/07/2019;1054;0;0;1;Spese correnti;3;Acquisto di beni e servizi;2;Acquisto di servizi;17;Servizi finanziari;2;Oneri per servizio di tesoreria;05/07/2019
554;3;0;1;3;BANCO SARDEGNA; ;spese tesoreria;05/07/2019;1054;0;0;1;Spese correnti;3;Acquisto di beni e servizi;2;Acquisto di servizi;17;Servizi finanziari;2;Oneri per servizio di tesoreria;05/07/2019
555;1;0;1.594,38;1.594,38;GLOBAL POWER;ZD9273DFBF;ACCONTO Fatt.n. V0/79238  del 04/06/2019 Fattura Energia Elettrica;05/07/2019;1937;1;53;1;Spese correnti;3;Acquisto di beni e servizi;2;Acquisto di servizi;5;Utenze e canoni;4;Energia elettrica;05/07/2019
556;1;0;350,76;350,76;GLOBAL POWER;ZD9273DFBF;SALDO Fatt.n. V0/79238  del 04/06/2019 Fattura Energia Elettrica;05/07/2019;1937;1;53;1;Spese correnti;3;Acquisto di beni e servizi;2;Acquisto di servizi;5;Utenze e canoni;4;Energia elettrica;05/07/2019
557;1;0;1.211,65;1.211,65;GLOBAL POWER;ZD9273DFBF;ACCONTO Fatt.n. V0/79239  del 04/06/2019 Fattura Energia Elettrica;05/07/2019;1937;1;53;1;Spese correnti;3;Acquisto di beni e servizi;2;Acquisto di servizi;5;Utenze e canoni;4;Energia elettrica;05/07/2019
558;1;0;270,96;270,96;GLOBAL POWER;ZD9273DFBF;SALDO Fatt.n. V0/79239  del 04/06/2019 Fattura Energia Elettrica;05/07/2019;1937;1;53;1;Spese correnti;3;Acquisto di beni e servizi;2;Acquisto di servizi;5;Utenze e canoni;4;Energia elettrica;05/07/2019
560;1;0;18.150,00;18.150,00;CICLAT TRASPORTI AMBIENTE SOC.COOP.;7,63E+14;SALDO Fatt.n. 471 -P  del 30/06/2019 FATTURA;05/07/2019;1738;0;87;1;Spese correnti;3;Acquisto di beni e servizi;2;Acquisto di servizi;15;Contratti di servizio pubblico;5;Contratti di servizio per il conferimento in discarica dei rifiuti;05/07/2019
562;1;0;326,72;326,72;POSTE ITALIANE;ZDB270E28A;SALDO Fatt.n. 8719214852  del 02/07/2019 Fattura Elettronica relativa all'Identificativo Rendiconto 2102495364;08/07/2019;1043;11;13;1;Spese correnti;3;Acquisto di beni e servizi;2;Acquisto di servizi;16;Servizi amministrativi;2;Spese postali;08/07/2019
564;1;0;510,14;2.882,89;OMESSO NOMINATIVO NEL RISPETTO DELLA NORMATIVA SULLA PROTEZIONE DATI PERSONALI; ;leggi di settore;08/07/2019;1906;0;54;1;Spese correnti;4;Trasferimenti correnti;2;Trasferimenti correnti a Famiglie;2;Interventi assistenziali;999;Altri assegni e sussidi assistenziali;08/07/2019
564;2;0;510,14;2.882,89;OMESSO NOMINATIVO NEL RISPETTO DELLA NORMATIVA SULLA PROTEZIONE DATI PERSONALI; ;leggi di settore;08/07/2019;1906;0;54;1;Spese correnti;4;Trasferimenti correnti;2;Trasferimenti correnti a Famiglie;2;Interventi assistenziali;999;Altri assegni e sussidi assistenziali;08/07/2019
564;3;0;826,11;2.882,89;OMESSO NOMINATIVO NEL RISPETTO DELLA NORMATIVA SULLA PROTEZIONE DATI PERSONALI; ;leggi di settore;08/07/2019;1906;0;54;1;Spese correnti;4;Trasferimenti correnti;2;Trasferimenti correnti a Famiglie;2;Interventi assistenziali;999;Altri assegni e sussidi assistenziali;08/07/2019
564;4;0;510,14;2.882,89;OMESSO NOMINATIVO NEL RISPETTO DELLA NORMATIVA SULLA PROTEZIONE DATI PERSONALI; ;leggi di settore;08/07/2019;1906;0;54;1;Spese correnti;4;Trasferimenti correnti;2;Trasferimenti correnti a Famiglie;2;Interventi assistenziali;999;Altri assegni e sussidi assistenziali;08/07/2019
564;5;0;526,36;2.882,89;OMESSO NOMINATIVO NEL RISPETTO DELLA NORMATIVA SULLA PROTEZIONE DATI PERSONALI; ;leggi di settore;08/07/2019;1906;0;54;1;Spese correnti;4;Trasferimenti correnti;2;Trasferimenti correnti a Famiglie;2;Interventi assistenziali;999;Altri assegni e sussidi assistenziali;08/07/2019
565;1;0;489,62;3.287,81;OMESSO NOMINATIVO NEL RISPETTO DELLA NORMATIVA SULLA PROTEZIONE DATI PERSONALI; ;leggi di settore;08/07/2019;1906;0;54;1;Spese correnti;4;Trasferimenti correnti;2;Trasferimenti correnti a Famiglie;2;Interventi assistenziali;999;Altri assegni e sussidi assistenziali;08/07/2019
565;2;0;269,91;3.287,81;OMESSO NOMINATIVO NEL RISPETTO DELLA NORMATIVA SULLA PROTEZIONE DATI PERSONALI; ;leggi di settore;08/07/2019;1906;0;54;1;Spese correnti;4;Trasferimenti correnti;2;Trasferimenti correnti a Famiglie;2;Interventi assistenziali;999;Altri assegni e sussidi assistenziali;08/07/2019
565;3;0;549,28;3.287,81;OMESSO NOMINATIVO NEL RISPETTO DELLA NORMATIVA SULLA PROTEZIONE DATI PERSONALI; ;leggi di settore;08/07/2019;1906;0;54;1;Spese correnti;4;Trasferimenti correnti;2;Trasferimenti correnti a Famiglie;2;Interventi assistenziali;999;Altri assegni e sussidi assistenziali;08/07/2019
565;4;0;1.468,86;3.287,81;OMESSO NOMINATIVO NEL RISPETTO DELLA NORMATIVA SULLA PROTEZIONE DATI PERSONALI; ;leggi di settore;08/07/2019;1906;0;54;1;Spese correnti;4;Trasferimenti correnti;2;Trasferimenti correnti a Famiglie;2;Interventi assistenziali;999;Altri assegni e sussidi assistenziali;08/07/2019
565;5;0;510,14;3.287,81;OMESSO NOMINATIVO NEL RISPETTO DELLA NORMATIVA SULLA PROTEZIONE DATI PERSONALI; ;leggi di settore;08/07/2019;1906;0;54;1;Spese correnti;4;Trasferimenti correnti;2;Trasferimenti correnti a Famiglie;2;Interventi assistenziali;999;Altri assegni e sussidi assistenziali;08/07/2019
566;1;0;774,69;2.194,98;OMESSO NOMINATIVO NEL RISPETTO DELLA NORMATIVA SULLA PROTEZIONE DATI PERSONALI; ;leggi di settore;08/07/2019;1906;0;54;1;Spese correnti;4;Trasferimenti correnti;2;Trasferimenti correnti a Famiglie;2;Interventi assistenziali;999;Altri assegni e sussidi assistenziali;08/07/2019
566;2;0;84,24;2.194,98;OMESSO NOMINATIVO NEL RISPETTO DELLA NORMATIVA SULLA PROTEZIONE DATI PERSONALI; ;leggi di settore;08/07/2019;1906;0;54;1;Spese correnti;4;Trasferimenti correnti;2;Trasferimenti correnti a Famiglie;2;Interventi assistenziali;999;Altri assegni e sussidi assistenziali;08/07/2019
566;3;0;358,02;2.194,98;OMESSO NOMINATIVO NEL RISPETTO DELLA NORMATIVA SULLA PROTEZIONE DATI PERSONALI; ;leggi di settore;08/07/2019;1906;0;54;1;Spese correnti;4;Trasferimenti correnti;2;Trasferimenti correnti a Famiglie;2;Interventi assistenziali;999;Altri assegni e sussidi assistenziali;08/07/2019
566;4;0;872,73;2.194,98;OMESSO NOMINATIVO NEL RISPETTO DELLA NORMATIVA SULLA PROTEZIONE DATI PERSONALI; ;leggi di settore;08/07/2019;1906;0;54;1;Spese correnti;4;Trasferimenti correnti;2;Trasferimenti correnti a Famiglie;2;Interventi assistenziali;999;Altri assegni e sussidi assistenziali;08/07/2019
566;5;0;105,3;2.194,98;OMESSO NOMINATIVO NEL RISPETTO DELLA NORMATIVA SULLA PROTEZIONE DATI PERSONALI; ;leggi di settore;08/07/2019;1906;0;54;1;Spese correnti;4;Trasferimenti correnti;2;Trasferimenti correnti a Famiglie;2;Interventi assistenziali;999;Altri assegni e sussidi assistenziali;08/07/2019
567;1;0;154,94;154,94;OMESSO NOMINATIVO NEL RISPETTO DELLA NORMATIVA SULLA PROTEZIONE DATI PERSONALI; ;leggi di settore;08/07/2019;1906;0;54;1;Spese correnti;4;Trasferimenti correnti;2;Trasferimenti correnti a Famiglie;2;Interventi assistenziali;999;Altri assegni e sussidi assistenziali;08/07/2019
568;1;0;929,64;929,64;OMESSO NOMINATIVO NEL RISPETTO DELLA NORMATIVA SULLA PROTEZIONE DATI PERSONALI; ;leggi di settore;08/07/2019;1906;0;54;1;Spese correnti;4;Trasferimenti correnti;2;Trasferimenti correnti a Famiglie;2;Interventi assistenziali;999;Altri assegni e sussidi assistenziali;08/07/2019
569;1;0;14.676,20;14.676,20;COMUNE DI OSILO; ;SOMME PER SEGRETERIA CONVENZIONATA DAL 01/01/2019 AL 30/06/2019;09/07/2019;1023;3;118;1;Spese correnti;4;Trasferimenti correnti;1;Trasferimenti correnti a Amministrazioni Pubbliche;2;Trasferimenti correnti a Amministrazioni Locali;3;Trasferimenti correnti a Comuni;09/07/2019
570;1;0;692,77;692,77;BOSINCO LUIGI;Z341F3FOCC;SALDO Fatt.n. FATTPA 17_19  del 02/07/2019 Gestione scuolabus mese di giugno 2019 gg 14 C.I.G.Z341F3FOCC;09/07/2019;1400;0;132;1;Spese correnti;3;Acquisto di beni e servizi;2;Acquisto di servizi;15;Contratti di servizio pubblico;2;Contratti di servizio di trasporto scolastico;09/07/2019
571;1;0;1.452,77;1.452,77;CONSORZIO LA SORGENTE;7591934620;SALDO Fatt.n. 3/175  del 05/07/2019 VENDITA;09/07/2019;1902;0;31;1;Spese correnti;3;Acquisto di beni e servizi;2;Acquisto di servizi;15;Contratti di servizio pubblico;9;Contratti di servizio di assistenza sociale domiciliare;09/07/2019
572;1;0;1.610,73;1.610,73;SILODEMA SOCIETA' COOPERATIVA SOCIALE A R.L.;7585760F2B;SALDO Fatt.n. FATTPA 37_19  del 28/06/2019 Servizio mensa svolto nel mese di Giugno CIG 7585760F2B;09/07/2019;1352;3;52;1;Spese correnti;3;Acquisto di beni e servizi;2;Acquisto di servizi;15;Contratti di servizio pubblico;6;Contratti di servizio per le mense scolastiche;09/07/2019
573;1;0;2.808,60;2.808,60;A.I.A.S.; ;inserimento utente in struttura GIUGNO;09/07/2019;1934;0;30;1;Spese correnti;4;Trasferimenti correnti;4;Trasferimenti correnti a Istituzioni Sociali Private;1;Trasferimenti correnti a Istituzioni Sociali Private;1;Trasferimenti correnti a Istituzioni Sociali Private;09/07/2019
574;1;0;1.234,23;1.234,23;CHESSA ALESSANDRO;7800624E8D;SALDO Fatt.n. FATTPA 48_19  del 01/07/2019 Vs. dare per manutenzione ordinaria impianto di illuminazione pubblica ed impianti elettrici immobili comunali, GIUGNO 2019;09/07/2019;1939;0;46;1;Spese correnti;3;Acquisto di beni e servizi;2;Acquisto di servizi;9;Manutenzione ordinaria e riparazioni;8;Manutenzione ordinaria e riparazioni di beni immobili;09/07/2019
575;1;0;2.906,37;2.906,37;HALLEY SARDEGNA SRL;ZD326B45F5;SALDO Fatt.n. 0000908  del 02/07/2019;09/07/2019;1042;0;20;1;Spese correnti;3;Acquisto di beni e servizi;2;Acquisto di servizi;9;Manutenzione ordinaria e riparazioni;6;Manutenzione ordinaria e riparazioni di macchine per ufficio;09/07/2019
577;1;0;117,55;931,86;OMESSO NOMINATIVO NEL RISPETTO DELLA NORMATIVA SULLA PROTEZIONE DATI PERSONALI; ;l.162/98 giugno;12/07/2019;1927;3;106;1;Spese correnti;4;Trasferimenti correnti;2;Trasferimenti correnti a Famiglie;2;Interventi assistenziali;999;Altri assegni e sussidi assistenziali;12/07/2019
577;2;0;79,87;931,86;OMESSO NOMINATIVO NEL RISPETTO DELLA NORMATIVA SULLA PROTEZIONE DATI PERSONALI; ;l.162/98 giugno;12/07/2019;1927;3;106;1;Spese correnti;4;Trasferimenti correnti;2;Trasferimenti correnti a Famiglie;2;Interventi assistenziali;999;Altri assegni e sussidi assistenziali;12/07/2019
577;3;0;167,95;931,86;OMESSO NOMINATIVO NEL RISPETTO DELLA NORMATIVA SULLA PROTEZIONE DATI PERSONALI; ;l.162/98 giugno;12/07/2019;1927;3;106;1;Spese correnti;4;Trasferimenti correnti;2;Trasferimenti correnti a Famiglie;2;Interventi assistenziali;999;Altri assegni e sussidi assistenziali;12/07/2019
577;4;0;254,9;931,86;OMESSO NOMINATIVO NEL RISPETTO DELLA NORMATIVA SULLA PROTEZIONE DATI PERSONALI; ;l.162/98 giugno;12/07/2019;1927;3;106;1;Spese correnti;4;Trasferimenti correnti;2;Trasferimenti correnti a Famiglie;2;Interventi assistenziali;999;Altri assegni e sussidi assistenziali;12/07/2019
577;5;0;311,59;931,86;OMESSO NOMINATIVO NEL RISPETTO DELLA NORMATIVA SULLA PROTEZIONE DATI PERSONALI; ;l.162/98 giugno;12/07/2019;1927;3;106;1;Spese correnti;4;Trasferimenti correnti;2;Trasferimenti correnti a Famiglie;2;Interventi assistenziali;999;Altri assegni e sussidi assistenziali;12/07/2019
578;1;0;228,45;1.997,35;OMESSO NOMINATIVO NEL RISPETTO DELLA NORMATIVA SULLA PROTEZIONE DATI PERSONALI; ;l.162/98 GIUGNO;12/07/2019;1927;3;106;1;Spese correnti;4;Trasferimenti correnti;2;Trasferimenti correnti a Famiglie;2;Interventi assistenziali;999;Altri assegni e sussidi assistenziali;12/07/2019
578;2;0;626,5;1.997,35;OMESSO NOMINATIVO NEL RISPETTO DELLA NORMATIVA SULLA PROTEZIONE DATI PERSONALI; ;l.162/98 GIUGNO;12/07/2019;1927;3;106;1;Spese correnti;4;Trasferimenti correnti;2;Trasferimenti correnti a Famiglie;2;Interventi assistenziali;999;Altri assegni e sussidi assistenziali;12/07/2019
578;3;0;254,25;1.997,35;OMESSO NOMINATIVO NEL RISPETTO DELLA NORMATIVA SULLA PROTEZIONE DATI PERSONALI; ;l.162/98 GIUGNO;12/07/2019;1927;3;106;1;Spese correnti;4;Trasferimenti correnti;2;Trasferimenti correnti a Famiglie;2;Interventi assistenziali;999;Altri assegni e sussidi assistenziali;12/07/2019
578;4;0;747,5;1.997,35;OMESSO NOMINATIVO NEL RISPETTO DELLA NORMATIVA SULLA PROTEZIONE DATI PERSONALI; ;l.162/98 GIUGNO;12/07/2019;1927;3;106;1;Spese correnti;4;Trasferimenti correnti;2;Trasferimenti correnti a Famiglie;2;Interventi assistenziali;999;Altri assegni e sussidi assistenziali;12/07/2019
578;5;0;140,65;1.997,35;OMESSO NOMINATIVO NEL RISPETTO DELLA NORMATIVA SULLA PROTEZIONE DATI PERSONALI; ;l.162/98 GIUGNO;12/07/2019;1927;3;106;1;Spese correnti;4;Trasferimenti correnti;2;Trasferimenti correnti a Famiglie;2;Interventi assistenziali;999;Altri assegni e sussidi assistenziali;12/07/2019
579;1;0;151,57;1.317,49;OMESSO NOMINATIVO NEL RISPETTO DELLA NORMATIVA SULLA PROTEZIONE DATI PERSONALI; ;l.162/98 GIUGNO;12/07/2019;1927;3;106;1;Spese correnti;4;Trasferimenti correnti;2;Trasferimenti correnti a Famiglie;2;Interventi assistenziali;999;Altri assegni e sussidi assistenziali;12/07/2019
579;2;0;229,15;1.317,49;OMESSO NOMINATIVO NEL RISPETTO DELLA NORMATIVA SULLA PROTEZIONE DATI PERSONALI; ;l.162/98 GIUGNO;12/07/2019;1927;3;106;1;Spese correnti;4;Trasferimenti correnti;2;Trasferimenti correnti a Famiglie;2;Interventi assistenziali;999;Altri assegni e sussidi assistenziali;12/07/2019
579;3;0;326,7;1.317,49;OMESSO NOMINATIVO NEL RISPETTO DELLA NORMATIVA SULLA PROTEZIONE DATI PERSONALI; ;l.162/98 GIUGNO;12/07/2019;1927;3;106;1;Spese correnti;4;Trasferimenti correnti;2;Trasferimenti correnti a Famiglie;2;Interventi assistenziali;999;Altri assegni e sussidi assistenziali;12/07/2019
579;4;0;448,4;1.317,49;OMESSO NOMINATIVO NEL RISPETTO DELLA NORMATIVA SULLA PROTEZIONE DATI PERSONALI; ;l.162/98 GIUGNO;12/07/2019;1927;3;106;1;Spese correnti;4;Trasferimenti correnti;2;Trasferimenti correnti a Famiglie;2;Interventi assistenziali;999;Altri assegni e sussidi assistenziali;12/07/2019
579;5;0;161,67;1.317,49;OMESSO NOMINATIVO NEL RISPETTO DELLA NORMATIVA SULLA PROTEZIONE DATI PERSONALI; ;l.162/98 GIUGNO;12/07/2019;1927;3;106;1;Spese correnti;4;Trasferimenti correnti;2;Trasferimenti correnti a Famiglie;2;Interventi assistenziali;999;Altri assegni e sussidi assistenziali;12/07/2019
580;1;0;172,55;1.128,21;OMESSO NOMINATIVO NEL RISPETTO DELLA NORMATIVA SULLA PROTEZIONE DATI PERSONALI; ;l.162/98 GIUGNO;12/07/2019;1927;3;106;1;Spese correnti;4;Trasferimenti correnti;2;Trasferimenti correnti a Famiglie;2;Interventi assistenziali;999;Altri assegni e sussidi assistenziali;12/07/2019
580;2;0;204;1.128,21;OMESSO NOMINATIVO NEL RISPETTO DELLA NORMATIVA SULLA PROTEZIONE DATI PERSONALI; ;l.162/98 GIUGNO;12/07/2019;1927;3;106;1;Spese correnti;4;Trasferimenti correnti;2;Trasferimenti correnti a Famiglie;2;Interventi assistenziali;999;Altri assegni e sussidi assistenziali;12/07/2019
580;3;0;300;1.128,21;OMESSO NOMINATIVO NEL RISPETTO DELLA NORMATIVA SULLA PROTEZIONE DATI PERSONALI; ;l.162/98 GIUGNO;12/07/2019;1927;3;106;1;Spese correnti;4;Trasferimenti correnti;2;Trasferimenti correnti a Famiglie;2;Interventi assistenziali;999;Altri assegni e sussidi assistenziali;12/07/2019
580;4;0;300,1;1.128,21;OMESSO NOMINATIVO NEL RISPETTO DELLA NORMATIVA SULLA PROTEZIONE DATI PERSONALI; ;l.162/98 GIUGNO;12/07/2019;1927;3;106;1;Spese correnti;4;Trasferimenti correnti;2;Trasferimenti correnti a Famiglie;2;Interventi assistenziali;999;Altri assegni e sussidi assistenziali;12/07/2019
580;5;0;151,56;1.128,21;OMESSO NOMINATIVO NEL RISPETTO DELLA NORMATIVA SULLA PROTEZIONE DATI PERSONALI; ;l.162/98 GIUGNO;12/07/2019;1927;3;106;1;Spese correnti;4;Trasferimenti correnti;2;Trasferimenti correnti a Famiglie;2;Interventi assistenziali;999;Altri assegni e sussidi assistenziali;12/07/2019
581;1;0;166,4;1.340,20;OMESSO NOMINATIVO NEL RISPETTO DELLA NORMATIVA SULLA PROTEZIONE DATI PERSONALI; ;l.162/98 GIUGNO;12/07/2019;1927;3;106;1;Spese correnti;4;Trasferimenti correnti;2;Trasferimenti correnti a Famiglie;2;Interventi assistenziali;999;Altri assegni e sussidi assistenziali;12/07/2019
581;2;0;375;1.340,20;OMESSO NOMINATIVO NEL RISPETTO DELLA NORMATIVA SULLA PROTEZIONE DATI PERSONALI; ;l.162/98 GIUGNO;12/07/2019;1927;3;106;1;Spese correnti;4;Trasferimenti correnti;2;Trasferimenti correnti a Famiglie;2;Interventi assistenziali;999;Altri assegni e sussidi assistenziali;12/07/2019
581;3;0;423,2;1.340,20;OMESSO NOMINATIVO NEL RISPETTO DELLA NORMATIVA SULLA PROTEZIONE DATI PERSONALI; ;l.162/98 GIUGNO;12/07/2019;1927;3;106;1;Spese correnti;4;Trasferimenti correnti;2;Trasferimenti correnti a Famiglie;2;Interventi assistenziali;999;Altri assegni e sussidi assistenziali;12/07/2019
581;4;0;196,3;1.340,20;OMESSO NOMINATIVO NEL RISPETTO DELLA NORMATIVA SULLA PROTEZIONE DATI PERSONALI; ;l.162/98 GIUGNO;12/07/2019;1927;3;106;1;Spese correnti;4;Trasferimenti correnti;2;Trasferimenti correnti a Famiglie;2;Interventi assistenziali;999;Altri assegni e sussidi assistenziali;12/07/2019
581;5;0;179,3;1.340,20;OMESSO NOMINATIVO NEL RISPETTO DELLA NORMATIVA SULLA PROTEZIONE DATI PERSONALI; ;l.162/98 GIUGNO;12/07/2019;1927;3;106;1;Spese correnti;4;Trasferimenti correnti;2;Trasferimenti correnti a Famiglie;2;Interventi assistenziali;999;Altri assegni e sussidi assistenziali;12/07/2019
583;1;0;1.363,23;1.363,23;ATOS SRLS;Z042920574;SALDO Fatt.n. 3/PA  del 09/07/2019 FORNITURA PRODOTTI CHIMICI PER PISCINA COMUNALE;16/07/2019;1046;0;119;1;Spese correnti;3;Acquisto di beni e servizi;1;Acquisto di beni;2;Altri beni di consumo;12;Accessori per attività sportive e ricreative;16/07/2019
585;1;0;220,91;1.031,46;OMESSO NOMINATIVO NEL RISPETTO DELLA NORMATIVA SULLA PROTEZIONE DATI PERSONALI; ;l.162/98 giugno;17/07/2019;1927;3;106;1;Spese correnti;4;Trasferimenti correnti;2;Trasferimenti correnti a Famiglie;2;Interventi assistenziali;999;Altri assegni e sussidi assistenziali;17/07/2019
585;2;0;312,4;1.031,46;OMESSO NOMINATIVO NEL RISPETTO DELLA NORMATIVA SULLA PROTEZIONE DATI PERSONALI; ;l.162/98 giugno;17/07/2019;1927;3;106;1;Spese correnti;4;Trasferimenti correnti;2;Trasferimenti correnti a Famiglie;2;Interventi assistenziali;999;Altri assegni e sussidi assistenziali;17/07/2019
585;3;0;310,71;1.031,46;OMESSO NOMINATIVO NEL RISPETTO DELLA NORMATIVA SULLA PROTEZIONE DATI PERSONALI; ;l.162/98 giugno;17/07/2019;1927;3;106;1;Spese correnti;4;Trasferimenti correnti;2;Trasferimenti correnti a Famiglie;2;Interventi assistenziali;999;Altri assegni e sussidi assistenziali;17/07/2019
585;4;0;187,44;1.031,46;OMESSO NOMINATIVO NEL RISPETTO DELLA NORMATIVA SULLA PROTEZIONE DATI PERSONALI; ;l.162/98 giugno;17/07/2019;1927;3;106;1;Spese correnti;4;Trasferimenti correnti;2;Trasferimenti correnti a Famiglie;2;Interventi assistenziali;999;Altri assegni e sussidi assistenziali;17/07/2019
586;1;0;305,32;524;OMESSO NOMINATIVO NEL RISPETTO DELLA NORMATIVA SULLA PROTEZIONE DATI PERSONALI; ;l.162/98;17/07/2019;1927;3;106;1;Spese correnti;4;Trasferimenti correnti;2;Trasferimenti correnti a Famiglie;2;Interventi assistenziali;999;Altri assegni e sussidi assistenziali;17/07/2019
586;2;0;218,68;524;OMESSO NOMINATIVO NEL RISPETTO DELLA NORMATIVA SULLA PROTEZIONE DATI PERSONALI; ;l.162/98;17/07/2019;1927;3;106;1;Spese correnti;4;Trasferimenti correnti;2;Trasferimenti correnti a Famiglie;2;Interventi assistenziali;999;Altri assegni e sussidi assistenziali;17/07/2019
587;1;0;3.000,00;3.000,00;GRUPPO SPORTIVO ANGLONA LAERRU; ;CONTRIBUTO PER GESTIONE PISCINA COMUNALE;17/07/2019;1505;0;121;1;Spese correnti;4;Trasferimenti correnti;3;Trasferimenti correnti a Imprese;99;Trasferimenti correnti a altre imprese;999;Trasferimenti correnti a altre imprese;17/07/2019
588;1;0;136;673,33;GAVIANO DANIELA; ;AGEVOLAZIONI TARIFFARIE PER ABBONAMENTI ANNUALI A.S. 2018/2019;17/07/2019;1401;5;122;1;Spese correnti;3;Acquisto di beni e servizi;2;Acquisto di servizi;15;Contratti di servizio pubblico;2;Contratti di servizio di trasporto scolastico;17/07/2019
588;2;0;229,33;673,33;PUGGIONI ANTONELLA; ;AGEVOLAZIONI TARIFFARIE PER ABBONAMENTI ANNUALI A.S. 2018/2019;17/07/2019;1401;5;122;1;Spese correnti;3;Acquisto di beni e servizi;2;Acquisto di servizi;15;Contratti di servizio pubblico;2;Contratti di servizio di trasporto scolastico;17/07/2019
588;3;0;112;673,33;PUGGIONI ROSSANA; ;AGEVOLAZIONI TARIFFARIE PER ABBONAMENTI ANNUALI A.S. 2018/2019;17/07/2019;1401;5;122;1;Spese correnti;3;Acquisto di beni e servizi;2;Acquisto di servizi;15;Contratti di servizio pubblico;2;Contratti di servizio di trasporto scolastico;17/07/2019
588;4;0;84;673,33;URBANI ELISA TEODORA MARIA; ;AGEVOLAZIONI TARIFFARIE PER ABBONAMENTI ANNUALI A.S. 2018/2019;17/07/2019;1401;5;122;1;Spese correnti;3;Acquisto di beni e servizi;2;Acquisto di servizi;15;Contratti di servizio pubblico;2;Contratti di servizio di trasporto scolastico;17/07/2019
588;5;0;112;673,33;URRAZZA PIETRINA; ;AGEVOLAZIONI TARIFFARIE PER ABBONAMENTI ANNUALI A.S. 2018/2019;17/07/2019;1401;5;122;1;Spese correnti;3;Acquisto di beni e servizi;2;Acquisto di servizi;15;Contratti di servizio pubblico;2;Contratti di servizio di trasporto scolastico;17/07/2019
589;1;0;136;529,6;BARONI MARA; ;AGEVOLAZIONI TARIFFARIE PER ABBONAMENTI ANNUALI A.S. 2018/2019;17/07/2019;1401;5;122;1;Spese correnti;3;Acquisto di beni e servizi;2;Acquisto di servizi;15;Contratti di servizio pubblico;2;Contratti di servizio di trasporto scolastico;17/07/2019
589;2;0;112;529,6;CARTA FABIANA; ;AGEVOLAZIONI TARIFFARIE PER ABBONAMENTI ANNUALI A.S. 2018/2019;17/07/2019;1401;5;122;1;Spese correnti;3;Acquisto di beni e servizi;2;Acquisto di servizi;15;Contratti di servizio pubblico;2;Contratti di servizio di trasporto scolastico;17/07/2019
589;3;0;136;529,6;DELRIO BERNARDETTE; ;AGEVOLAZIONI TARIFFARIE PER ABBONAMENTI ANNUALI A.S. 2018/2019;17/07/2019;1401;5;122;1;Spese correnti;3;Acquisto di beni e servizi;2;Acquisto di servizi;15;Contratti di servizio pubblico;2;Contratti di servizio di trasporto scolastico;17/07/2019
589;4;0;112;529,6;DELRIO MARIA MARGHERITA; ;AGEVOLAZIONI TARIFFARIE PER ABBONAMENTI ANNUALI A.S. 2018/2019;17/07/2019;1401;5;122;1;Spese correnti;3;Acquisto di beni e servizi;2;Acquisto di servizi;15;Contratti di servizio pubblico;2;Contratti di servizio di trasporto scolastico;17/07/2019
589;5;0;33,6;529,6;SINI PATRIZIA; ;AGEVOLAZIONI TARIFFARIE PER ABBONAMENTI ANNUALI A.S. 2018/2019;17/07/2019;1401;5;122;1;Spese correnti;3;Acquisto di beni e servizi;2;Acquisto di servizi;15;Contratti di servizio pubblico;2;Contratti di servizio di trasporto scolastico;17/07/2019
590;1;0;272;781,6;FIORI MARIA GRAZIA; ;AGEVOLAZIONI TARIFFARIE PER ABBONAMENTI ANNUALI A.S. 2018/2019;17/07/2019;1401;5;122;1;Spese correnti;3;Acquisto di beni e servizi;2;Acquisto di servizi;15;Contratti di servizio pubblico;2;Contratti di servizio di trasporto scolastico;17/07/2019
590;2;0;33,6;781,6;NOCE YLENIA; ;AGEVOLAZIONI TARIFFARIE PER ABBONAMENTI ANNUALI A.S. 2018/2019;17/07/2019;1401;5;122;1;Spese correnti;3;Acquisto di beni e servizi;2;Acquisto di servizi;15;Contratti di servizio pubblico;2;Contratti di servizio di trasporto scolastico;17/07/2019
590;3;0;136;781,6;PIRAS MATTEO; ;AGEVOLAZIONI TARIFFARIE PER ABBONAMENTI ANNUALI A.S. 2018/2019;17/07/2019;1401;5;122;1;Spese correnti;3;Acquisto di beni e servizi;2;Acquisto di servizi;15;Contratti di servizio pubblico;2;Contratti di servizio di trasporto scolastico;17/07/2019
590;4;0;136;781,6;PORCU CATERINA; ;AGEVOLAZIONI TARIFFARIE PER ABBONAMENTI ANNUALI A.S. 2018/2019;17/07/2019;1401;5;122;1;Spese correnti;3;Acquisto di beni e servizi;2;Acquisto di servizi;15;Contratti di servizio pubblico;2;Contratti di servizio di trasporto scolastico;17/07/2019
590;5;0;204;781,6;SINI MARGHERITA; ;AGEVOLAZIONI TARIFFARIE PER ABBONAMENTI ANNUALI A.S. 2018/2019;17/07/2019;1401;5;122;1;Spese correnti;3;Acquisto di beni e servizi;2;Acquisto di servizi;15;Contratti di servizio pubblico;2;Contratti di servizio di trasporto scolastico;17/07/2019
591;1;0;33,6;369,6;CASU CATERINA; ;AGEVOLAZIONI TARIFFARIE PER ABBONAMENTI ANNUALI A.S. 2018/2019;17/07/2019;1401;5;122;1;Spese correnti;3;Acquisto di beni e servizi;2;Acquisto di servizi;15;Contratti di servizio pubblico;2;Contratti di servizio di trasporto scolastico;17/07/2019
591;2;0;336;369,6;FARA IRENE; ;AGEVOLAZIONI TARIFFARIE PER ABBONAMENTI ANNUALI A.S. 2018/2019;17/07/2019;1401;5;122;1;Spese correnti;3;Acquisto di beni e servizi;2;Acquisto di servizi;15;Contratti di servizio pubblico;2;Contratti di servizio di trasporto scolastico;17/07/2019
592;1;0;218,27;218,27;MINISTERO INTERNO; ;COMUNE DI LAERRU CORRISPETTIVO PER RILASCIO CARTE IDENTITA' DAL 01/05/2019 AL 30/06/2019;17/07/2019;1039;0;124;1;Spese correnti;3;Acquisto di beni e servizi;2;Acquisto di servizi;16;Servizi amministrativi;999;Altre spese per servizi amministrativi;17/07/2019
593;1;0;1.481,58;1.481,58;PERSONALE DIVERSO (Confr.Allegato); ;STIPENDI MESE DI: LUGLIO 19;17/07/2019;1001;0;0;1;Spese correnti;3;Acquisto di beni e servizi;2;Acquisto di servizi;1;Organi e incarichi istituzionali dell'amministrazione;1;Organi istituzionali dell'amministrazione - Indennità;17/07/2019
594;1;0;125,94;125,94;TESORERIA PROVINCIALE DELLO STATO; ;VERS. IMPOSTE MESE: LUGLIO 19 PER I.R.A.P.;17/07/2019;1001;0;0;1;Spese correnti;3;Acquisto di beni e servizi;2;Acquisto di servizi;1;Organi e incarichi istituzionali dell'amministrazione;1;Organi istituzionali dell'amministrazione - Indennità;17/07/2019
623;1;0;69,72;69,72;SINI GIOVANNI MARIA; ;RIMBORSO FORFETTARIO AMMINISTRATORI LUGLIO;18/07/2019;1001;0;76;1;Spese correnti;3;Acquisto di beni e servizi;2;Acquisto di servizi;1;Organi e incarichi istituzionali dell'amministrazione;1;Organi istituzionali dell'amministrazione - Indennità;18/07/2019
624;1;0;92,96;92,96;DEFFENU ANNA MARIA; ;RIMBORSO FORFETTARIO AMMINISTRATORI LUGLIO;18/07/2019;1001;0;75;1;Spese correnti;3;Acquisto di beni e servizi;2;Acquisto di servizi;1;Organi e incarichi istituzionali dell'amministrazione;1;Organi istituzionali dell'amministrazione - Indennità;18/07/2019
625;1;0;69,72;69,72;VERRE ANDREINA; ;RIMBORSO FORFETTARIO AMMINISTRATORI LUGLIO;18/07/2019;1001;0;74;1;Spese correnti;3;Acquisto di beni e servizi;2;Acquisto di servizi;1;Organi e incarichi istituzionali dell'amministrazione;1;Organi istituzionali dell'amministrazione - Indennità;18/07/2019
626;1;0;2.544,18;2.544,18;COMUNE DI SANTA MARIA COGHINAS; ;rimborso spese convenzione operaio;18/07/2019;1086;0;125;1;Spese correnti;4;Trasferimenti correnti;1;Trasferimenti correnti a Amministrazioni Pubbliche;2;Trasferimenti correnti a Amministrazioni Locali;3;Trasferimenti correnti a Comuni;18/07/2019
627;1;0;201,1;201,1;EDUPE';Z7F2686393;SALDO Fatt.n. 2/18  del 17/07/2019;24/07/2019;1360;0;210;1;Spese correnti;3;Acquisto di beni e servizi;2;Acquisto di servizi;11;Prestazioni professionali e specialistiche;2;Assistenza psicologica, sociale e religiosa;24/07/2019
628;1;0;2.718,00;2.718,00;A.I.A.S.; ;FATT.N. 1135/A GIUGNO;24/07/2019;1934;0;30;1;Spese correnti;4;Trasferimenti correnti;4;Trasferimenti correnti a Istituzioni Sociali Private;1;Trasferimenti correnti a Istituzioni Sociali Private;1;Trasferimenti correnti a Istituzioni Sociali Private;24/07/2019
630;1;0;1.234,23;1.234,23;CHESSA ALESSANDRO;7784159B35;SALDO Fatt.n. FATTPA 57_19  del 31/07/2019 Vs. dare per manutenzione ordinaria impianto di illuminazione pubblica ed impianti elettrici immobili comunali LUGLIO 2019;02/08/2019;1939;0;46;1;Spese correnti;3;Acquisto di beni e servizi;2;Acquisto di servizi;9;Manutenzione ordinaria e riparazioni;8;Manutenzione ordinaria e riparazioni di beni immobili;02/08/2019
631;1;0;85,4;85,4;DITTA GASPARI;Z4F293980D;SALDO Fatt.n. 15079/S  del 30/07/2019;02/08/2019;1043;3;127;1;Spese correnti;3;Acquisto di beni e servizi;2;Acquisto di servizi;4;Acquisto di servizi per formazione e addestramento del personale dell'ente;999;Acquisto di servizi per altre spese per formazione e addestramento n.a.c.;02/08/2019
632;1;0;1.453,20;1.453,20;DITTA GASPARI;Z8C293F8E4;SALDO Fatt.n. 15291/S  del 31/07/2019;02/08/2019;1043;3;126;1;Spese correnti;3;Acquisto di beni e servizi;2;Acquisto di servizi;4;Acquisto di servizi per formazione e addestramento del personale dell'ente;999;Acquisto di servizi per altre spese per formazione e addestramento n.a.c.;02/08/2019
633;1;0;10,64;10,64;POSTE ITALIANE;ZDB270E28A;SALDO Fatt.n. 8719247836  del 31/07/2019 Fattura Elettronica relativa all'Identificativo Rendiconto 2103116205;02/08/2019;1043;11;13;1;Spese correnti;3;Acquisto di beni e servizi;2;Acquisto di servizi;16;Servizi amministrativi;2;Spese postali;02/08/2019
634;1;0;4.815,10;4.815,10;CROVETTI GIACOMO SALVATORE LUCIO;ZE82926343;SALDO Fatt.n. 6/FE  del 30/07/2019;02/08/2019;1058;0;123;1;Spese correnti;3;Acquisto di beni e servizi;2;Acquisto di servizi;11;Prestazioni professionali e specialistiche;999;Altre prestazioni professionali e specialistiche n.a.c.;02/08/2019
635;1;0;6.620,00;6.620,00;COMUNE DI OSILO; ;set 3 TRIEMSTRE;02/08/2019;1920;10;82;1;Spese correnti;4;Trasferimenti correnti;1;Trasferimenti correnti a Amministrazioni Pubbliche;2;Trasferimenti correnti a Amministrazioni Locali;3;Trasferimenti correnti a Comuni;02/08/2019
636;1;0;6.500,00;6.500,00;COMUNE DI OSILO; ;PIANO LOCALE UNITARIO SAD;02/08/2019;1920;11;51;1;Spese correnti;4;Trasferimenti correnti;1;Trasferimenti correnti a Amministrazioni Pubbliche;2;Trasferimenti correnti a Amministrazioni Locali;3;Trasferimenti correnti a Comuni;02/08/2019
637;1;0;6.039,22;6.039,22;CONSORZIO LA SORGENTE;7591934620;SALDO Fatt.n. 3/210  del 01/08/2019 VENDITA;06/08/2019;1902;0;31;1;Spese correnti;3;Acquisto di beni e servizi;2;Acquisto di servizi;15;Contratti di servizio pubblico;9;Contratti di servizio di assistenza sociale domiciliare;06/08/2019
638;1;0;1.468,86;2.448,10;OMESSO NOMINATIVO NEL RISPETTO DELLA NORMATIVA SULLA PROTEZIONE DATI PERSONALI; ;leggi di settore;06/08/2019;1906;0;54;1;Spese correnti;4;Trasferimenti correnti;2;Trasferimenti correnti a Famiglie;2;Interventi assistenziali;999;Altri assegni e sussidi assistenziali;06/08/2019
638;2;0;979,24;2.448,10;OMESSO NOMINATIVO NEL RISPETTO DELLA NORMATIVA SULLA PROTEZIONE DATI PERSONALI; ;leggi di settore;06/08/2019;1906;0;54;1;Spese correnti;4;Trasferimenti correnti;2;Trasferimenti correnti a Famiglie;2;Interventi assistenziali;999;Altri assegni e sussidi assistenziali;06/08/2019
639;1;0;169,34;169,34;EDUPE';Z7F2686393;SALDO Fatt.n. 2/19  del 02/08/2019;06/08/2019;1360;0;210;1;Spese correnti;3;Acquisto di beni e servizi;2;Acquisto di servizi;11;Prestazioni professionali e specialistiche;2;Assistenza psicologica, sociale e religiosa;06/08/2019
640;1;0;117,55;846,09;OMESSO NOMINATIVO NEL RISPETTO DELLA NORMATIVA SULLA PROTEZIONE DATI PERSONALI; ;l.162/98 luglio;06/08/2019;1927;3;106;1;Spese correnti;4;Trasferimenti correnti;2;Trasferimenti correnti a Famiglie;2;Interventi assistenziali;999;Altri assegni e sussidi assistenziali;06/08/2019
640;2;0;144,19;846,09;OMESSO NOMINATIVO NEL RISPETTO DELLA NORMATIVA SULLA PROTEZIONE DATI PERSONALI; ;l.162/98 luglio;06/08/2019;1927;3;106;1;Spese correnti;4;Trasferimenti correnti;2;Trasferimenti correnti a Famiglie;2;Interventi assistenziali;999;Altri assegni e sussidi assistenziali;06/08/2019
640;3;0;127;846,09;OMESSO NOMINATIVO NEL RISPETTO DELLA NORMATIVA SULLA PROTEZIONE DATI PERSONALI; ;l.162/98 luglio;06/08/2019;1927;3;106;1;Spese correnti;4;Trasferimenti correnti;2;Trasferimenti correnti a Famiglie;2;Interventi assistenziali;999;Altri assegni e sussidi assistenziali;06/08/2019
640;4;0;248;846,09;OMESSO NOMINATIVO NEL RISPETTO DELLA NORMATIVA SULLA PROTEZIONE DATI PERSONALI; ;l.162/98 luglio;06/08/2019;1927;3;106;1;Spese correnti;4;Trasferimenti correnti;2;Trasferimenti correnti a Famiglie;2;Interventi assistenziali;999;Altri assegni e sussidi assistenziali;06/08/2019
640;5;0;209,35;846,09;OMESSO NOMINATIVO NEL RISPETTO DELLA NORMATIVA SULLA PROTEZIONE DATI PERSONALI; ;l.162/98 luglio;06/08/2019;1927;3;106;1;Spese correnti;4;Trasferimenti correnti;2;Trasferimenti correnti a Famiglie;2;Interventi assistenziali;999;Altri assegni e sussidi assistenziali;06/08/2019
641;1;0;140;1.648,60;OMESSO NOMINATIVO NEL RISPETTO DELLA NORMATIVA SULLA PROTEZIONE DATI PERSONALI; ;l.162/98 luglio;06/08/2019;1927;3;106;1;Spese correnti;4;Trasferimenti correnti;2;Trasferimenti correnti a Famiglie;2;Interventi assistenziali;999;Altri assegni e sussidi assistenziali;06/08/2019
641;2;0;500;1.648,60;OMESSO NOMINATIVO NEL RISPETTO DELLA NORMATIVA SULLA PROTEZIONE DATI PERSONALI; ;l.162/98 luglio;06/08/2019;1927;3;106;1;Spese correnti;4;Trasferimenti correnti;2;Trasferimenti correnti a Famiglie;2;Interventi assistenziali;999;Altri assegni e sussidi assistenziali;06/08/2019
641;3;0;168,7;1.648,60;OMESSO NOMINATIVO NEL RISPETTO DELLA NORMATIVA SULLA PROTEZIONE DATI PERSONALI; ;l.162/98 luglio;06/08/2019;1927;3;106;1;Spese correnti;4;Trasferimenti correnti;2;Trasferimenti correnti a Famiglie;2;Interventi assistenziali;999;Altri assegni e sussidi assistenziali;06/08/2019
641;4;0;750;1.648,60;OMESSO NOMINATIVO NEL RISPETTO DELLA NORMATIVA SULLA PROTEZIONE DATI PERSONALI; ;l.162/98 luglio;06/08/2019;1927;3;106;1;Spese correnti;4;Trasferimenti correnti;2;Trasferimenti correnti a Famiglie;2;Interventi assistenziali;999;Altri assegni e sussidi assistenziali;06/08/2019
641;5;0;89,9;1.648,60;OMESSO NOMINATIVO NEL RISPETTO DELLA NORMATIVA SULLA PROTEZIONE DATI PERSONALI; ;l.162/98 luglio;06/08/2019;1927;3;106;1;Spese correnti;4;Trasferimenti correnti;2;Trasferimenti correnti a Famiglie;2;Interventi assistenziali;999;Altri assegni e sussidi assistenziali;06/08/2019
642;1;0;151,57;979,85;OMESSO NOMINATIVO NEL RISPETTO DELLA NORMATIVA SULLA PROTEZIONE DATI PERSONALI; ;l.162/98;06/08/2019;1927;3;106;1;Spese correnti;4;Trasferimenti correnti;2;Trasferimenti correnti a Famiglie;2;Interventi assistenziali;999;Altri assegni e sussidi assistenziali;06/08/2019
642;2;0;165,6;979,85;OMESSO NOMINATIVO NEL RISPETTO DELLA NORMATIVA SULLA PROTEZIONE DATI PERSONALI; ;l.162/98;06/08/2019;1927;3;106;1;Spese correnti;4;Trasferimenti correnti;2;Trasferimenti correnti a Famiglie;2;Interventi assistenziali;999;Altri assegni e sussidi assistenziali;06/08/2019
642;3;0;202;979,85;OMESSO NOMINATIVO NEL RISPETTO DELLA NORMATIVA SULLA PROTEZIONE DATI PERSONALI; ;l.162/98;06/08/2019;1927;3;106;1;Spese correnti;4;Trasferimenti correnti;2;Trasferimenti correnti a Famiglie;2;Interventi assistenziali;999;Altri assegni e sussidi assistenziali;06/08/2019
642;4;0;300,1;979,85;OMESSO NOMINATIVO NEL RISPETTO DELLA NORMATIVA SULLA PROTEZIONE DATI PERSONALI; ;l.162/98;06/08/2019;1927;3;106;1;Spese correnti;4;Trasferimenti correnti;2;Trasferimenti correnti a Famiglie;2;Interventi assistenziali;999;Altri assegni e sussidi assistenziali;06/08/2019
642;5;0;160,58;979,85;OMESSO NOMINATIVO NEL RISPETTO DELLA NORMATIVA SULLA PROTEZIONE DATI PERSONALI; ;l.162/98;06/08/2019;1927;3;106;1;Spese correnti;4;Trasferimenti correnti;2;Trasferimenti correnti a Famiglie;2;Interventi assistenziali;999;Altri assegni e sussidi assistenziali;06/08/2019
643;1;0;89,15;1.153,55;OMESSO NOMINATIVO NEL RISPETTO DELLA NORMATIVA SULLA PROTEZIONE DATI PERSONALI; ;l.162/98;06/08/2019;1927;3;106;1;Spese correnti;4;Trasferimenti correnti;2;Trasferimenti correnti a Famiglie;2;Interventi assistenziali;999;Altri assegni e sussidi assistenziali;06/08/2019
643;2;0;128;1.153,55;OMESSO NOMINATIVO NEL RISPETTO DELLA NORMATIVA SULLA PROTEZIONE DATI PERSONALI; ;l.162/98;06/08/2019;1927;3;106;1;Spese correnti;4;Trasferimenti correnti;2;Trasferimenti correnti a Famiglie;2;Interventi assistenziali;999;Altri assegni e sussidi assistenziali;06/08/2019
643;3;0;468,52;1.153,55;OMESSO NOMINATIVO NEL RISPETTO DELLA NORMATIVA SULLA PROTEZIONE DATI PERSONALI; ;l.162/98;06/08/2019;1927;3;106;1;Spese correnti;4;Trasferimenti correnti;2;Trasferimenti correnti a Famiglie;2;Interventi assistenziali;999;Altri assegni e sussidi assistenziali;06/08/2019
643;4;0;286;1.153,55;OMESSO NOMINATIVO NEL RISPETTO DELLA NORMATIVA SULLA PROTEZIONE DATI PERSONALI; ;l.162/98;06/08/2019;1927;3;106;1;Spese correnti;4;Trasferimenti correnti;2;Trasferimenti correnti a Famiglie;2;Interventi assistenziali;999;Altri assegni e sussidi assistenziali;06/08/2019
643;5;0;181,88;1.153,55;OMESSO NOMINATIVO NEL RISPETTO DELLA NORMATIVA SULLA PROTEZIONE DATI PERSONALI; ;l.162/98;06/08/2019;1927;3;106;1;Spese correnti;4;Trasferimenti correnti;2;Trasferimenti correnti a Famiglie;2;Interventi assistenziali;999;Altri assegni e sussidi assistenziali;06/08/2019
644;1;0;166,4;1.359,64;OMESSO NOMINATIVO NEL RISPETTO DELLA NORMATIVA SULLA PROTEZIONE DATI PERSONALI; ;l.162/98;06/08/2019;1927;3;106;1;Spese correnti;4;Trasferimenti correnti;2;Trasferimenti correnti a Famiglie;2;Interventi assistenziali;999;Altri assegni e sussidi assistenziali;06/08/2019
644;2;0;375;1.359,64;OMESSO NOMINATIVO NEL RISPETTO DELLA NORMATIVA SULLA PROTEZIONE DATI PERSONALI; ;l.162/98;06/08/2019;1927;3;106;1;Spese correnti;4;Trasferimenti correnti;2;Trasferimenti correnti a Famiglie;2;Interventi assistenziali;999;Altri assegni e sussidi assistenziali;06/08/2019
644;3;0;130,24;1.359,64;OMESSO NOMINATIVO NEL RISPETTO DELLA NORMATIVA SULLA PROTEZIONE DATI PERSONALI; ;l.162/98;06/08/2019;1927;3;106;1;Spese correnti;4;Trasferimenti correnti;2;Trasferimenti correnti a Famiglie;2;Interventi assistenziali;999;Altri assegni e sussidi assistenziali;06/08/2019
644;4;0;375;1.359,64;OMESSO NOMINATIVO NEL RISPETTO DELLA NORMATIVA SULLA PROTEZIONE DATI PERSONALI; ;l.162/98;06/08/2019;1927;3;106;1;Spese correnti;4;Trasferimenti correnti;2;Trasferimenti correnti a Famiglie;2;Interventi assistenziali;999;Altri assegni e sussidi assistenziali;06/08/2019
644;5;0;313;1.359,64;OMESSO NOMINATIVO NEL RISPETTO DELLA NORMATIVA SULLA PROTEZIONE DATI PERSONALI; ;l.162/98;06/08/2019;1927;3;106;1;Spese correnti;4;Trasferimenti correnti;2;Trasferimenti correnti a Famiglie;2;Interventi assistenziali;999;Altri assegni e sussidi assistenziali;06/08/2019
645;1;0;143,8;143,8;OMESSO NOMINATIVO NEL RISPETTO DELLA NORMATIVA SULLA PROTEZIONE DATI PERSONALI; ;l.162/98;06/08/2019;1927;3;106;1;Spese correnti;4;Trasferimenti correnti;2;Trasferimenti correnti a Famiglie;2;Interventi assistenziali;999;Altri assegni e sussidi assistenziali;06/08/2019
648;1;0;443,69;443,69;SETCOM DI GABRIELE DIANA;Z652902999;SALDO Fatt.n. 12/PA  del 01/08/2019;07/08/2019;1035;0;117;1;Spese correnti;3;Acquisto di beni e servizi;2;Acquisto di servizi;19;Servizi informatici e di telecomunicazioni;5;Servizi per i sistemi e relativa manutenzione;07/08/2019
650;1;0;18.150,00;18.150,00;CICLAT TRASPORTI AMBIENTE SOC.COOP.;7,63E+14;SALDO Fatt.n. 559 -P  del 31/07/2019 FATTURA;08/08/2019;1738;0;87;1;Spese correnti;3;Acquisto di beni e servizi;2;Acquisto di servizi;15;Contratti di servizio pubblico;5;Contratti di servizio per il conferimento in discarica dei rifiuti;08/08/2019
651;1;0;976;976;IDEA PUBBLICA;Z8D24FBF17;ACCONTO Fatt.n. 151/E  del 06/08/2019;09/08/2019;1043;3;116;1;Spese correnti;3;Acquisto di beni e servizi;2;Acquisto di servizi;4;Acquisto di servizi per formazione e addestramento del personale dell'ente;999;Acquisto di servizi per altre spese per formazione e addestramento n.a.c.;09/08/2019
652;1;0;976;976;IDEA PUBBLICA;Z8D24FBF17;SALDO Fatt.n. 151/E  del 06/08/2019;09/08/2019;1043;12;129;1;Spese correnti;3;Acquisto di beni e servizi;2;Acquisto di servizi;5;Utenze e canoni;3;Accesso a banche dati e a pubblicazioni on line;09/08/2019
653;1;0;251,44;1.108,14;OMESSO NOMINATIVO NEL RISPETTO DELLA NORMATIVA SULLA PROTEZIONE DATI PERSONALI; ;l.162/98 luglio;09/08/2019;1927;3;106;1;Spese correnti;4;Trasferimenti correnti;2;Trasferimenti correnti a Famiglie;2;Interventi assistenziali;999;Altri assegni e sussidi assistenziali;09/08/2019
653;2;0;312,4;1.108,14;OMESSO NOMINATIVO NEL RISPETTO DELLA NORMATIVA SULLA PROTEZIONE DATI PERSONALI; ;l.162/98 luglio;09/08/2019;1927;3;106;1;Spese correnti;4;Trasferimenti correnti;2;Trasferimenti correnti a Famiglie;2;Interventi assistenziali;999;Altri assegni e sussidi assistenziali;09/08/2019
653;3;0;341,24;1.108,14;OMESSO NOMINATIVO NEL RISPETTO DELLA NORMATIVA SULLA PROTEZIONE DATI PERSONALI; ;l.162/98 luglio;09/08/2019;1927;3;106;1;Spese correnti;4;Trasferimenti correnti;2;Trasferimenti correnti a Famiglie;2;Interventi assistenziali;999;Altri assegni e sussidi assistenziali;09/08/2019
653;4;0;203,06;1.108,14;OMESSO NOMINATIVO NEL RISPETTO DELLA NORMATIVA SULLA PROTEZIONE DATI PERSONALI; ;l.162/98 luglio;09/08/2019;1927;3;106;1;Spese correnti;4;Trasferimenti correnti;2;Trasferimenti correnti a Famiglie;2;Interventi assistenziali;999;Altri assegni e sussidi assistenziali;09/08/2019
654;1;0;305,32;453,71;OMESSO NOMINATIVO NEL RISPETTO DELLA NORMATIVA SULLA PROTEZIONE DATI PERSONALI; ;l.162/98 luglio;09/08/2019;1927;3;106;1;Spese correnti;4;Trasferimenti correnti;2;Trasferimenti correnti a Famiglie;2;Interventi assistenziali;999;Altri assegni e sussidi assistenziali;09/08/2019
654;2;0;148,39;453,71;OMESSO NOMINATIVO NEL RISPETTO DELLA NORMATIVA SULLA PROTEZIONE DATI PERSONALI; ;l.162/98 luglio;09/08/2019;1927;3;106;1;Spese correnti;4;Trasferimenti correnti;2;Trasferimenti correnti a Famiglie;2;Interventi assistenziali;999;Altri assegni e sussidi assistenziali;09/08/2019
655;1;0;1.581,24;1.581,24;GLOBAL POWER;ZD9273DFBF;ACCONTO Fatt.n. V0/95362  del 02/07/2019 Fattura Energia Elettrica;09/08/2019;1937;1;53;1;Spese correnti;3;Acquisto di beni e servizi;2;Acquisto di servizi;5;Utenze e canoni;4;Energia elettrica;09/08/2019
656;1;0;347,87;347,87;GLOBAL POWER;ZD9273DFBF;SALDO Fatt.n. V0/95362  del 02/07/2019 Fattura Energia Elettrica;09/08/2019;1937;1;53;1;Spese correnti;3;Acquisto di beni e servizi;2;Acquisto di servizi;5;Utenze e canoni;4;Energia elettrica;09/08/2019
657;1;0;1.124,21;1.124,21;GLOBAL POWER;ZD9273DFBF;ACCONTO Fatt.n. V0/95363  del 02/07/2019 Fattura Energia Elettrica;09/08/2019;1937;1;53;1;Spese correnti;3;Acquisto di beni e servizi;2;Acquisto di servizi;5;Utenze e canoni;4;Energia elettrica;09/08/2019
658;1;0;247,33;247,33;GLOBAL POWER;ZD9273DFBF;SALDO Fatt.n. V0/95363  del 02/07/2019 Fattura Energia Elettrica;09/08/2019;1937;1;53;1;Spese correnti;3;Acquisto di beni e servizi;2;Acquisto di servizi;5;Utenze e canoni;4;Energia elettrica;09/08/2019
659;1;0;1.481,58;1.481,58;PERSONALE DIVERSO (Confr.Allegato); ;STIPENDI MESE DI: AGOSTO 19;12/08/2019;1001;0;0;1;Spese correnti;3;Acquisto di beni e servizi;2;Acquisto di servizi;1;Organi e incarichi istituzionali dell'amministrazione;1;Organi istituzionali dell'amministrazione - Indennità;12/08/2019
689;1;0;69,72;69,72;SINI GIOVANNI MARIA; ;RIMBORSO FORFETTARIO AMMINISTRATORI agosto;13/08/2019;1001;0;76;1;Spese correnti;3;Acquisto di beni e servizi;2;Acquisto di servizi;1;Organi e incarichi istituzionali dell'amministrazione;1;Organi istituzionali dell'amministrazione - Indennità;13/08/2019
690;1;0;69,72;69,72;VERRE ANDREINA; ;RIMBORSO FORFETTARIO AMMINISTRATORI AGOSTO;13/08/2019;1001;0;74;1;Spese correnti;3;Acquisto di beni e servizi;2;Acquisto di servizi;1;Organi e incarichi istituzionali dell'amministrazione;1;Organi istituzionali dell'amministrazione - Indennità;13/08/2019
691;1;0;92,96;92,96;DEFFENU ANNA MARIA; ;RIMBORSO FORFETTARIO AMMINISTRATORI;13/08/2019;1001;0;75;1;Spese correnti;3;Acquisto di beni e servizi;2;Acquisto di servizi;1;Organi e incarichi istituzionali dell'amministrazione;1;Organi istituzionali dell'amministrazione - Indennità;13/08/2019
696;1;0;2.186,34;2.186,34;COMUNE DI SASSARI; ;SALDO Fatt.n. 141/12  del 24/07/2019 SCISSIONE DEI PAGAMENTI;03/09/2019;1738;0;133;1;Spese correnti;3;Acquisto di beni e servizi;2;Acquisto di servizi;15;Contratti di servizio pubblico;5;Contratti di servizio per il conferimento in discarica dei rifiuti;03/09/2019
697;1;0;132,9;132,9;OMESSO NOMINATIVO NEL RISPETTO DELLA NORMATIVA SULLA PROTEZIONE DATI PERSONALI; ;l.162/98 LUGLIO;03/09/2019;1927;3;106;1;Spese correnti;4;Trasferimenti correnti;2;Trasferimenti correnti a Famiglie;2;Interventi assistenziali;999;Altri assegni e sussidi assistenziali;03/09/2019
698;1;0;147,42;544,38;OMESSO NOMINATIVO NEL RISPETTO DELLA NORMATIVA SULLA PROTEZIONE DATI PERSONALI; ;leggi di settore;03/09/2019;1906;0;54;1;Spese correnti;4;Trasferimenti correnti;2;Trasferimenti correnti a Famiglie;2;Interventi assistenziali;999;Altri assegni e sussidi assistenziali;03/09/2019
698;2;0;228,48;544,38;OMESSO NOMINATIVO NEL RISPETTO DELLA NORMATIVA SULLA PROTEZIONE DATI PERSONALI; ;leggi di settore;03/09/2019;1906;0;54;1;Spese correnti;4;Trasferimenti correnti;2;Trasferimenti correnti a Famiglie;2;Interventi assistenziali;999;Altri assegni e sussidi assistenziali;03/09/2019
698;3;0;63,18;544,38;OMESSO NOMINATIVO NEL RISPETTO DELLA NORMATIVA SULLA PROTEZIONE DATI PERSONALI; ;leggi di settore;03/09/2019;1906;0;54;1;Spese correnti;4;Trasferimenti correnti;2;Trasferimenti correnti a Famiglie;2;Interventi assistenziali;999;Altri assegni e sussidi assistenziali;03/09/2019
698;4;0;105,3;544,38;OMESSO NOMINATIVO NEL RISPETTO DELLA NORMATIVA SULLA PROTEZIONE DATI PERSONALI; ;leggi di settore;03/09/2019;1906;0;54;1;Spese correnti;4;Trasferimenti correnti;2;Trasferimenti correnti a Famiglie;2;Interventi assistenziali;999;Altri assegni e sussidi assistenziali;03/09/2019
699;1;0;120,36;650,64;OMESSO NOMINATIVO NEL RISPETTO DELLA NORMATIVA SULLA PROTEZIONE DATI PERSONALI; ;leggi di settore;03/09/2019;1906;0;54;1;Spese correnti;4;Trasferimenti correnti;2;Trasferimenti correnti a Famiglie;2;Interventi assistenziali;999;Altri assegni e sussidi assistenziali;03/09/2019
699;2;0;530,28;650,64;OMESSO NOMINATIVO NEL RISPETTO DELLA NORMATIVA SULLA PROTEZIONE DATI PERSONALI; ;leggi di settore;03/09/2019;1906;0;54;1;Spese correnti;4;Trasferimenti correnti;2;Trasferimenti correnti a Famiglie;2;Interventi assistenziali;999;Altri assegni e sussidi assistenziali;03/09/2019
700;1;0;2.718,00;2.718,00;A.I.A.S.; ;FATT.N.1305/A LUGLIO;03/09/2019;1934;0;30;1;Spese correnti;4;Trasferimenti correnti;4;Trasferimenti correnti a Istituzioni Sociali Private;1;Trasferimenti correnti a Istituzioni Sociali Private;1;Trasferimenti correnti a Istituzioni Sociali Private;03/09/2019
702;1;0;10.000,00;10.000,00;COMPAGNIA BARRACELLARE; ;CONTRIBUTO ANTICENDIO;03/09/2019;1324;0;0;1;Spese correnti;4;Trasferimenti correnti;4;Trasferimenti correnti a Istituzioni Sociali Private;1;Trasferimenti correnti a Istituzioni Sociali Private;1;Trasferimenti correnti a Istituzioni Sociali Private;03/09/2019
703;1;0;3.216,60;3.216,60;UNIONE DEI COMUNI ALTA GALLURA;ZA428C2E39;ACCONTO Fatt.n. 74/1/1  del 30/05/2019 ONERI SMALTIMENTO R.U. - ANNO 2019- COMUNE DI LAERRU E BULZI GENNAIO/MARZO 2019 200108 RIFIUTI BIODEGRADABILI;04/09/2019;1738;0;138;1;Spese correnti;3;Acquisto di beni e servizi;2;Acquisto di servizi;15;Contratti di servizio pubblico;5;Contratti di servizio per il conferimento in discarica dei rifiuti;04/09/2019
704;1;0;321,66;321,66;UNIONE DEI COMUNI ALTA GALLURA;ZA428C2E39;SALDO Fatt.n. 74/1/1  del 30/05/2019 ONERI SMALTIMENTO R.U. - ANNO 2019- COMUNE DI LAERRU E BULZI GENNAIO/MARZO 2019 200108 RIFIUTI BIODEGRADABILI;04/09/2019;1738;0;138;1;Spese correnti;3;Acquisto di beni e servizi;2;Acquisto di servizi;15;Contratti di servizio pubblico;5;Contratti di servizio per il conferimento in discarica dei rifiuti;04/09/2019
706;1;0;1.234,23;1.234,23;CHESSA ALESSANDRO;7800624E8D;SALDO Fatt.n. FATTPA 66_19  del 02/09/2019 Vs. dare per manutenzione ordinaria impianto di illuminazione pubblica ed impianti elettrici immobili comunali AGOSTO 2019;04/09/2019;1939;0;46;1;Spese correnti;3;Acquisto di beni e servizi;2;Acquisto di servizi;9;Manutenzione ordinaria e riparazioni;8;Manutenzione ordinaria e riparazioni di beni immobili;04/09/2019
707;1;0;36,74;401,2;TELECOM ITALIA SPA;Z44276815E;SALDO Fatt.n. 8R00154595  del 06/08/2019 5BIM 2019;04/09/2019;1043;12;77;1;Spese correnti;3;Acquisto di beni e servizi;2;Acquisto di servizi;5;Utenze e canoni;1;Telefonia fissa;04/09/2019
707;2;0;78,71;401,2;TELECOM ITALIA SPA;Z44276815E;SALDO Fatt.n. 8R00154314  del 06/08/2019 5BIM 2019;04/09/2019;1043;12;77;1;Spese correnti;3;Acquisto di beni e servizi;2;Acquisto di servizi;5;Utenze e canoni;1;Telefonia fissa;04/09/2019
707;3;0;87,62;401,2;TELECOM ITALIA SPA;Z44276815E;SALDO Fatt.n. 8R00154692  del 06/08/2019 5BIM 2019;04/09/2019;1043;12;77;1;Spese correnti;3;Acquisto di beni e servizi;2;Acquisto di servizi;5;Utenze e canoni;1;Telefonia fissa;04/09/2019
707;4;0;98,93;401,2;TELECOM ITALIA SPA;Z44276815E;SALDO Fatt.n. 8R00155466  del 06/08/2019 5BIM 2019;04/09/2019;1043;12;77;1;Spese correnti;3;Acquisto di beni e servizi;2;Acquisto di servizi;5;Utenze e canoni;1;Telefonia fissa;04/09/2019
707;5;0;99,2;401,2;TELECOM ITALIA SPA;Z44276815E;SALDO Fatt.n. 8R00155634  del 06/08/2019 5BIM 2019;04/09/2019;1043;12;77;1;Spese correnti;3;Acquisto di beni e servizi;2;Acquisto di servizi;5;Utenze e canoni;1;Telefonia fissa;04/09/2019
708;1;0;41,75;96,89;TELECOM ITALIA SPA;Z44276815E;SALDO Fatt.n. 8R00154780  del 06/08/2019 5BIM 2019;04/09/2019;1366;0;79;1;Spese correnti;3;Acquisto di beni e servizi;2;Acquisto di servizi;5;Utenze e canoni;1;Telefonia fissa;04/09/2019
708;2;0;55,14;96,89;TELECOM ITALIA SPA;Z44276815E;SALDO Fatt.n. 8R00155691  del 06/08/2019 5BIM 2019;04/09/2019;1366;0;79;1;Spese correnti;3;Acquisto di beni e servizi;2;Acquisto di servizi;5;Utenze e canoni;1;Telefonia fissa;04/09/2019
709;1;0;486,78;486,78;SGF;Z2129774B6;SALDO Fatt.n. 120/PA  del 09/08/2019;04/09/2019;1043;8;128;1;Spese correnti;3;Acquisto di beni e servizi;1;Acquisto di beni;2;Altri beni di consumo;6;Materiale informatico;04/09/2019
711;1;0;2.291,58;2.291,58;COMUNE DI SASSARI; ;SALDO Fatt.n. 69/12  del 23/05/2019;06/09/2019;1738;0;132;1;Spese correnti;3;Acquisto di beni e servizi;2;Acquisto di servizi;15;Contratti di servizio pubblico;5;Contratti di servizio per il conferimento in discarica dei rifiuti;06/09/2019
712;1;0;254,62;254,62;COMUNE DI SASSARI; ;ACCONTO Fatt.n. 69/12  del 23/05/2019;06/09/2019;1738;0;132;1;Spese correnti;3;Acquisto di beni e servizi;2;Acquisto di servizi;15;Contratti di servizio pubblico;5;Contratti di servizio per il conferimento in discarica dei rifiuti;06/09/2019
713;1;0;254,62;254,62;COMUNE DI SASSARI; ;SALDO Fatt.n. 69/12  del 23/05/2019 SCISSIONE DEI PAGAMENTI iva;06/09/2019;1738;0;132;1;Spese correnti;3;Acquisto di beni e servizi;2;Acquisto di servizi;15;Contratti di servizio pubblico;5;Contratti di servizio per il conferimento in discarica dei rifiuti;06/09/2019
714;1;0;218,63;218,63;COMUNE DI SASSARI; ;iva;06/09/2019;1738;0;133;1;Spese correnti;3;Acquisto di beni e servizi;2;Acquisto di servizi;15;Contratti di servizio pubblico;5;Contratti di servizio per il conferimento in discarica dei rifiuti;06/09/2019
715;1;0;38,93;38,93;POSTE ITALIANE;ZDB270E28A;SALDO Fatt.n. 8719276752  del 05/09/2019 Fattura Elettronica relativa all'Identificativo Rendiconto 2103286306 b=031419871927675218;09/09/2019;1043;11;13;1;Spese correnti;3;Acquisto di beni e servizi;2;Acquisto di servizi;16;Servizi amministrativi;2;Spese postali;09/09/2019
717;1;0;117,55;868,8;OMESSO NOMINATIVO NEL RISPETTO DELLA NORMATIVA SULLA PROTEZIONE DATI PERSONALI; ;l.162/98 agosto;09/09/2019;1927;3;106;1;Spese correnti;4;Trasferimenti correnti;2;Trasferimenti correnti a Famiglie;2;Interventi assistenziali;999;Altri assegni e sussidi assistenziali;09/09/2019
717;2;0;123;868,8;OMESSO NOMINATIVO NEL RISPETTO DELLA NORMATIVA SULLA PROTEZIONE DATI PERSONALI; ;l.162/98 agosto;09/09/2019;1927;3;106;1;Spese correnti;4;Trasferimenti correnti;2;Trasferimenti correnti a Famiglie;2;Interventi assistenziali;999;Altri assegni e sussidi assistenziali;09/09/2019
717;3;0;168,7;868,8;OMESSO NOMINATIVO NEL RISPETTO DELLA NORMATIVA SULLA PROTEZIONE DATI PERSONALI; ;l.162/98 agosto;09/09/2019;1927;3;106;1;Spese correnti;4;Trasferimenti correnti;2;Trasferimenti correnti a Famiglie;2;Interventi assistenziali;999;Altri assegni e sussidi assistenziali;09/09/2019
717;4;0;250,2;868,8;OMESSO NOMINATIVO NEL RISPETTO DELLA NORMATIVA SULLA PROTEZIONE DATI PERSONALI; ;l.162/98 agosto;09/09/2019;1927;3;106;1;Spese correnti;4;Trasferimenti correnti;2;Trasferimenti correnti a Famiglie;2;Interventi assistenziali;999;Altri assegni e sussidi assistenziali;09/09/2019
717;5;0;209,35;868,8;OMESSO NOMINATIVO NEL RISPETTO DELLA NORMATIVA SULLA PROTEZIONE DATI PERSONALI; ;l.162/98 agosto;09/09/2019;1927;3;106;1;Spese correnti;4;Trasferimenti correnti;2;Trasferimenti correnti a Famiglie;2;Interventi assistenziali;999;Altri assegni e sussidi assistenziali;09/09/2019
718;1;0;140;1.556,47;OMESSO NOMINATIVO NEL RISPETTO DELLA NORMATIVA SULLA PROTEZIONE DATI PERSONALI; ;l.162/98 agosto;09/09/2019;1927;3;106;1;Spese correnti;4;Trasferimenti correnti;2;Trasferimenti correnti a Famiglie;2;Interventi assistenziali;999;Altri assegni e sussidi assistenziali;09/09/2019
718;2;0;151,57;1.556,47;OMESSO NOMINATIVO NEL RISPETTO DELLA NORMATIVA SULLA PROTEZIONE DATI PERSONALI; ;l.162/98 agosto;09/09/2019;1927;3;106;1;Spese correnti;4;Trasferimenti correnti;2;Trasferimenti correnti a Famiglie;2;Interventi assistenziali;999;Altri assegni e sussidi assistenziali;09/09/2019
718;3;0;425;1.556,47;OMESSO NOMINATIVO NEL RISPETTO DELLA NORMATIVA SULLA PROTEZIONE DATI PERSONALI; ;l.162/98 agosto;09/09/2019;1927;3;106;1;Spese correnti;4;Trasferimenti correnti;2;Trasferimenti correnti a Famiglie;2;Interventi assistenziali;999;Altri assegni e sussidi assistenziali;09/09/2019
718;4;0;750;1.556,47;OMESSO NOMINATIVO NEL RISPETTO DELLA NORMATIVA SULLA PROTEZIONE DATI PERSONALI; ;l.162/98 agosto;09/09/2019;1927;3;106;1;Spese correnti;4;Trasferimenti correnti;2;Trasferimenti correnti a Famiglie;2;Interventi assistenziali;999;Altri assegni e sussidi assistenziali;09/09/2019
718;5;0;89,9;1.556,47;OMESSO NOMINATIVO NEL RISPETTO DELLA NORMATIVA SULLA PROTEZIONE DATI PERSONALI; ;l.162/98 agosto;09/09/2019;1927;3;106;1;Spese correnti;4;Trasferimenti correnti;2;Trasferimenti correnti a Famiglie;2;Interventi assistenziali;999;Altri assegni e sussidi assistenziali;09/09/2019
719;1;0;165,6;1.117,08;OMESSO NOMINATIVO NEL RISPETTO DELLA NORMATIVA SULLA PROTEZIONE DATI PERSONALI; ;l.162/98 AGOSTO;09/09/2019;1927;3;106;1;Spese correnti;4;Trasferimenti correnti;2;Trasferimenti correnti a Famiglie;2;Interventi assistenziali;999;Altri assegni e sussidi assistenziali;09/09/2019
719;2;0;200;1.117,08;OMESSO NOMINATIVO NEL RISPETTO DELLA NORMATIVA SULLA PROTEZIONE DATI PERSONALI; ;l.162/98 AGOSTO;09/09/2019;1927;3;106;1;Spese correnti;4;Trasferimenti correnti;2;Trasferimenti correnti a Famiglie;2;Interventi assistenziali;999;Altri assegni e sussidi assistenziali;09/09/2019
719;3;0;286;1.117,08;OMESSO NOMINATIVO NEL RISPETTO DELLA NORMATIVA SULLA PROTEZIONE DATI PERSONALI; ;l.162/98 AGOSTO;09/09/2019;1927;3;106;1;Spese correnti;4;Trasferimenti correnti;2;Trasferimenti correnti a Famiglie;2;Interventi assistenziali;999;Altri assegni e sussidi assistenziali;09/09/2019
719;4;0;304,9;1.117,08;OMESSO NOMINATIVO NEL RISPETTO DELLA NORMATIVA SULLA PROTEZIONE DATI PERSONALI; ;l.162/98 AGOSTO;09/09/2019;1927;3;106;1;Spese correnti;4;Trasferimenti correnti;2;Trasferimenti correnti a Famiglie;2;Interventi assistenziali;999;Altri assegni e sussidi assistenziali;09/09/2019
719;5;0;160,58;1.117,08;OMESSO NOMINATIVO NEL RISPETTO DELLA NORMATIVA SULLA PROTEZIONE DATI PERSONALI; ;l.162/98 AGOSTO;09/09/2019;1927;3;106;1;Spese correnti;4;Trasferimenti correnti;2;Trasferimenti correnti a Famiglie;2;Interventi assistenziali;999;Altri assegni e sussidi assistenziali;09/09/2019
720;1;0;132;1.269,80;OMESSO NOMINATIVO NEL RISPETTO DELLA NORMATIVA SULLA PROTEZIONE DATI PERSONALI; ;l.162/98;09/09/2019;1927;3;106;1;Spese correnti;4;Trasferimenti correnti;2;Trasferimenti correnti a Famiglie;2;Interventi assistenziali;999;Altri assegni e sussidi assistenziali;09/09/2019
720;2;0;306;1.269,80;OMESSO NOMINATIVO NEL RISPETTO DELLA NORMATIVA SULLA PROTEZIONE DATI PERSONALI; ;l.162/98;09/09/2019;1927;3;106;1;Spese correnti;4;Trasferimenti correnti;2;Trasferimenti correnti a Famiglie;2;Interventi assistenziali;999;Altri assegni e sussidi assistenziali;09/09/2019
720;3;0;375;1.269,80;OMESSO NOMINATIVO NEL RISPETTO DELLA NORMATIVA SULLA PROTEZIONE DATI PERSONALI; ;l.162/98;09/09/2019;1927;3;106;1;Spese correnti;4;Trasferimenti correnti;2;Trasferimenti correnti a Famiglie;2;Interventi assistenziali;999;Altri assegni e sussidi assistenziali;09/09/2019
720;4;0;313;1.269,80;OMESSO NOMINATIVO NEL RISPETTO DELLA NORMATIVA SULLA PROTEZIONE DATI PERSONALI; ;l.162/98;09/09/2019;1927;3;106;1;Spese correnti;4;Trasferimenti correnti;2;Trasferimenti correnti a Famiglie;2;Interventi assistenziali;999;Altri assegni e sussidi assistenziali;09/09/2019
720;5;0;143,8;1.269,80;OMESSO NOMINATIVO NEL RISPETTO DELLA NORMATIVA SULLA PROTEZIONE DATI PERSONALI; ;l.162/98;09/09/2019;1927;3;106;1;Spese correnti;4;Trasferimenti correnti;2;Trasferimenti correnti a Famiglie;2;Interventi assistenziali;999;Altri assegni e sussidi assistenziali;09/09/2019
721;1;0;166,4;299,3;OMESSO NOMINATIVO NEL RISPETTO DELLA NORMATIVA SULLA PROTEZIONE DATI PERSONALI; ;l.162/98;09/09/2019;1927;3;106;1;Spese correnti;4;Trasferimenti correnti;2;Trasferimenti correnti a Famiglie;2;Interventi assistenziali;999;Altri assegni e sussidi assistenziali;09/09/2019
721;2;0;132,9;299,3;OMESSO NOMINATIVO NEL RISPETTO DELLA NORMATIVA SULLA PROTEZIONE DATI PERSONALI; ;l.162/98;09/09/2019;1927;3;106;1;Spese correnti;4;Trasferimenti correnti;2;Trasferimenti correnti a Famiglie;2;Interventi assistenziali;999;Altri assegni e sussidi assistenziali;09/09/2019
722;1;0;18.150,00;18.150,00;CICLAT TRASPORTI AMBIENTE SOC.COOP.;7,63E+14;SALDO Fatt.n. 651 -P  del 31/08/2019 FATTURA;09/09/2019;1738;0;87;1;Spese correnti;3;Acquisto di beni e servizi;2;Acquisto di servizi;15;Contratti di servizio pubblico;5;Contratti di servizio per il conferimento in discarica dei rifiuti;09/09/2019
724;1;0;1.481,58;1.481,58;PERSONALE DIVERSO (Confr.Allegato); ;STIPENDI MESE DI: SETTEMBRE 19;16/09/2019;1001;0;0;1;Spese correnti;3;Acquisto di beni e servizi;2;Acquisto di servizi;1;Organi e incarichi istituzionali dell'amministrazione;1;Organi istituzionali dell'amministrazione - Indennità;16/09/2019
725;1;0;125,94;125,94;TESORERIA PROVINCIALE DELLO STATO; ;VERS. IMPOSTE MESE: SETTEMBRE 19 PER I.R.A.P.;16/09/2019;1001;0;0;1;Spese correnti;3;Acquisto di beni e servizi;2;Acquisto di servizi;1;Organi e incarichi istituzionali dell'amministrazione;1;Organi istituzionali dell'amministrazione - Indennità;16/09/2019
753;1;0;69,72;69,72;SINI GIOVANNI MARIA; ;RIMBORSO FORFETTARIO AMMINISTRATORI settembre;16/09/2019;1001;0;76;1;Spese correnti;3;Acquisto di beni e servizi;2;Acquisto di servizi;1;Organi e incarichi istituzionali dell'amministrazione;1;Organi istituzionali dell'amministrazione - Indennità;16/09/2019
754;1;0;92,96;92,96;DEFFENU ANNA MARIA; ;RIMBORSO FORFETTARIO AMMINISTRATORI SETTEMBRE;16/09/2019;1001;0;75;1;Spese correnti;3;Acquisto di beni e servizi;2;Acquisto di servizi;1;Organi e incarichi istituzionali dell'amministrazione;1;Organi istituzionali dell'amministrazione - Indennità;16/09/2019
755;1;0;69,72;69,72;VERRE ANDREINA; ;RIMBORSO FORFETTARIO AMMINISTRATORI SETTEMBRE;16/09/2019;1001;0;74;1;Spese correnti;3;Acquisto di beni e servizi;2;Acquisto di servizi;1;Organi e incarichi istituzionali dell'amministrazione;1;Organi istituzionali dell'amministrazione - Indennità;16/09/2019
756;1;0;1.000,00;1.000,00;GRUPPO SPORTIVO ANGLONA LAERRU; ;CONTRIBUTO PER FESTA SANTA MARGHERITA;16/09/2019;1508;0;139;1;Spese correnti;4;Trasferimenti correnti;4;Trasferimenti correnti a Istituzioni Sociali Private;1;Trasferimenti correnti a Istituzioni Sociali Private;1;Trasferimenti correnti a Istituzioni Sociali Private;16/09/2019
757;1;0;1;4;BANCO SARDEGNA;ZD9273DFB;oneri tesoreria;19/09/2019;1054;0;0;1;Spese correnti;3;Acquisto di beni e servizi;2;Acquisto di servizi;17;Servizi finanziari;2;Oneri per servizio di tesoreria;19/09/2019
757;2;0;1;4;BANCO SARDEGNA;ZD9273DFB;oneri tesoreria;19/09/2019;1054;0;0;1;Spese correnti;3;Acquisto di beni e servizi;2;Acquisto di servizi;17;Servizi finanziari;2;Oneri per servizio di tesoreria;19/09/2019
757;3;0;1;4;BANCO SARDEGNA;ZD9273DFB;oneri tesoreria;19/09/2019;1054;0;0;1;Spese correnti;3;Acquisto di beni e servizi;2;Acquisto di servizi;17;Servizi finanziari;2;Oneri per servizio di tesoreria;19/09/2019
757;4;0;1;4;BANCO SARDEGNA;ZD9273DFB;oneri tesoreria;19/09/2019;1054;0;0;1;Spese correnti;3;Acquisto di beni e servizi;2;Acquisto di servizi;17;Servizi finanziari;2;Oneri per servizio di tesoreria;19/09/2019
758;1;0;1.697,72;1.697,72;GLOBAL POWER;ZD9273DFBF;ACCONTO Fatt.n. V0/112623  del 01/08/2019 Fattura Energia Elettrica;19/09/2019;1937;1;53;1;Spese correnti;3;Acquisto di beni e servizi;2;Acquisto di servizi;5;Utenze e canoni;4;Energia elettrica;19/09/2019
759;1;0;373,5;373,5;GLOBAL POWER;ZD9273DFBF;SALDO Fatt.n. V0/112623  del 01/08/2019 Fattura Energia Elettrica;19/09/2019;1937;1;53;1;Spese correnti;3;Acquisto di beni e servizi;2;Acquisto di servizi;5;Utenze e canoni;4;Energia elettrica;19/09/2019
760;1;0;1.204,37;1.204,37;GLOBAL POWER;ZD9273DFBF;ACCONTO Fatt.n. V0/112624  del 01/08/2019 Fattura Energia Elettrica;19/09/2019;1937;1;53;1;Spese correnti;3;Acquisto di beni e servizi;2;Acquisto di servizi;5;Utenze e canoni;4;Energia elettrica;19/09/2019
761;1;0;-1,58;264,96;GLOBAL POWER;ZD9273DFBF;ACCONTO Fatt.n. V0/112624  del 01/08/2019 Fattura Energia Elettrica;19/09/2019;1937;1;53;1;Spese correnti;3;Acquisto di beni e servizi;2;Acquisto di servizi;5;Utenze e canoni;4;Energia elettrica;19/09/2019
761;2;0;266,54;264,96;GLOBAL POWER;ZD9273DFBF;SALDO Fatt.n. V0/112624  del 01/08/2019 Fattura Energia Elettrica;19/09/2019;1937;1;53;1;Spese correnti;3;Acquisto di beni e servizi;2;Acquisto di servizi;5;Utenze e canoni;4;Energia elettrica;19/09/2019
764;1;0;465,12;465,12;TURRA GAVINA; ;rimborso spese viaggio giugno luglio agosto;20/09/2019;1024;3;140;1;Spese correnti;3;Acquisto di beni e servizi;2;Acquisto di servizi;2;Organizzazione eventi, pubblicita` e servizi per trasferta;1;Rimborso per viaggio e trasloco;20/09/2019
765;1;0;142,36;142,36;BOSINCO ALESSANDRO; ;RIMBORSO SOMME NON DOVUTE;20/09/2019;1029;0;141;1;Spese correnti;4;Trasferimenti correnti;2;Trasferimenti correnti a Famiglie;2;Interventi assistenziali;999;Altri assegni e sussidi assistenziali;20/09/2019
766;1;0;18;18;MANUNTA FLORANCE; ;RIMBORSO SOMME NON DOVUTE;20/09/2019;1029;0;142;1;Spese correnti;4;Trasferimenti correnti;2;Trasferimenti correnti a Famiglie;2;Interventi assistenziali;999;Altri assegni e sussidi assistenziali;20/09/2019
769;1;0;381,62;381,62;CONSORZIO LA SORGENTE;7591934620;SALDO Fatt.n. 3/249  del 19/09/2019 VENDITA;23/09/2019;1902;0;31;1;Spese correnti;3;Acquisto di beni e servizi;2;Acquisto di servizi;15;Contratti di servizio pubblico;9;Contratti di servizio di assistenza sociale domiciliare;23/09/2019
770;1;0;2.265,00;2.265,00;A.I.A.S.; ;FATT.N.1473/A DEL 31/8/19;23/09/2019;1934;0;30;1;Spese correnti;4;Trasferimenti correnti;4;Trasferimenti correnti a Istituzioni Sociali Private;1;Trasferimenti correnti a Istituzioni Sociali Private;1;Trasferimenti correnti a Istituzioni Sociali Private;23/09/2019
771;1;0;233,48;1.202,62;OMESSO NOMINATIVO NEL RISPETTO DELLA NORMATIVA SULLA PROTEZIONE DATI PERSONALI; ;l.162/98 AGOSTO;23/09/2019;1927;3;106;1;Spese correnti;4;Trasferimenti correnti;2;Trasferimenti correnti a Famiglie;2;Interventi assistenziali;999;Altri assegni e sussidi assistenziali;23/09/2019
771;2;0;312,4;1.202,62;OMESSO NOMINATIVO NEL RISPETTO DELLA NORMATIVA SULLA PROTEZIONE DATI PERSONALI; ;l.162/98 AGOSTO;23/09/2019;1927;3;106;1;Spese correnti;4;Trasferimenti correnti;2;Trasferimenti correnti a Famiglie;2;Interventi assistenziali;999;Altri assegni e sussidi assistenziali;23/09/2019
771;3;0;287,36;1.202,62;OMESSO NOMINATIVO NEL RISPETTO DELLA NORMATIVA SULLA PROTEZIONE DATI PERSONALI; ;l.162/98 AGOSTO;23/09/2019;1927;3;106;1;Spese correnti;4;Trasferimenti correnti;2;Trasferimenti correnti a Famiglie;2;Interventi assistenziali;999;Altri assegni e sussidi assistenziali;23/09/2019
771;4;0;197,56;1.202,62;OMESSO NOMINATIVO NEL RISPETTO DELLA NORMATIVA SULLA PROTEZIONE DATI PERSONALI; ;l.162/98 AGOSTO;23/09/2019;1927;3;106;1;Spese correnti;4;Trasferimenti correnti;2;Trasferimenti correnti a Famiglie;2;Interventi assistenziali;999;Altri assegni e sussidi assistenziali;23/09/2019
771;5;0;171,82;1.202,62;OMESSO NOMINATIVO NEL RISPETTO DELLA NORMATIVA SULLA PROTEZIONE DATI PERSONALI; ;l.162/98 AGOSTO;23/09/2019;1927;3;106;1;Spese correnti;4;Trasferimenti correnti;2;Trasferimenti correnti a Famiglie;2;Interventi assistenziali;999;Altri assegni e sussidi assistenziali;23/09/2019
772;1;0;305,32;843,66;OMESSO NOMINATIVO NEL RISPETTO DELLA NORMATIVA SULLA PROTEZIONE DATI PERSONALI; ;l.162/98 AGOSTO;23/09/2019;1927;3;106;1;Spese correnti;4;Trasferimenti correnti;2;Trasferimenti correnti a Famiglie;2;Interventi assistenziali;999;Altri assegni e sussidi assistenziali;23/09/2019
772;2;0;82,19;843,66;OMESSO NOMINATIVO NEL RISPETTO DELLA NORMATIVA SULLA PROTEZIONE DATI PERSONALI; ;l.162/98 AGOSTO;23/09/2019;1927;3;106;1;Spese correnti;4;Trasferimenti correnti;2;Trasferimenti correnti a Famiglie;2;Interventi assistenziali;999;Altri assegni e sussidi assistenziali;23/09/2019
772;3;0;156,2;843,66;OMESSO NOMINATIVO NEL RISPETTO DELLA NORMATIVA SULLA PROTEZIONE DATI PERSONALI; ;l.162/98 AGOSTO;23/09/2019;1927;3;106;1;Spese correnti;4;Trasferimenti correnti;2;Trasferimenti correnti a Famiglie;2;Interventi assistenziali;999;Altri assegni e sussidi assistenziali;23/09/2019
772;4;0;148,39;843,66;OMESSO NOMINATIVO NEL RISPETTO DELLA NORMATIVA SULLA PROTEZIONE DATI PERSONALI; ;l.162/98 AGOSTO;23/09/2019;1927;3;106;1;Spese correnti;4;Trasferimenti correnti;2;Trasferimenti correnti a Famiglie;2;Interventi assistenziali;999;Altri assegni e sussidi assistenziali;23/09/2019
772;5;0;151,56;843,66;OMESSO NOMINATIVO NEL RISPETTO DELLA NORMATIVA SULLA PROTEZIONE DATI PERSONALI; ;l.162/98 AGOSTO;23/09/2019;1927;3;106;1;Spese correnti;4;Trasferimenti correnti;2;Trasferimenti correnti a Famiglie;2;Interventi assistenziali;999;Altri assegni e sussidi assistenziali;23/09/2019
773;1;0;116,29;491,29;OMESSO NOMINATIVO NEL RISPETTO DELLA NORMATIVA SULLA PROTEZIONE DATI PERSONALI; ;l.162/98 AGOSTO;23/09/2019;1927;3;106;1;Spese correnti;4;Trasferimenti correnti;2;Trasferimenti correnti a Famiglie;2;Interventi assistenziali;999;Altri assegni e sussidi assistenziali;23/09/2019
773;2;0;375;491,29;OMESSO NOMINATIVO NEL RISPETTO DELLA NORMATIVA SULLA PROTEZIONE DATI PERSONALI; ;l.162/98 AGOSTO;23/09/2019;1927;3;106;1;Spese correnti;4;Trasferimenti correnti;2;Trasferimenti correnti a Famiglie;2;Interventi assistenziali;999;Altri assegni e sussidi assistenziali;23/09/2019
774;1;0;218,27;218,27;MINISTERO INTERNO; ;COMUNE DI LAERRU CORRISPETTIVO PER RILASCIO N.N.13 CARTE IDENTITA';23/09/2019;1039;0;143;1;Spese correnti;3;Acquisto di beni e servizi;2;Acquisto di servizi;16;Servizi amministrativi;999;Altre spese per servizi amministrativi;23/09/2019
775;1;0;33;33;CUBAIU GIUSEPPE; ;RESTITUZIONE SOMME NON DOVUTE;23/09/2019;1029;0;144;1;Spese correnti;4;Trasferimenti correnti;2;Trasferimenti correnti a Famiglie;2;Interventi assistenziali;999;Altri assegni e sussidi assistenziali;23/09/2019
776;1;0;63,2;63,2;ABBANOA; ;SALDO Fatt.n. 0150020190001886300  del 30/08/2019 B/Bollettazione;23/09/2019;1386;2;145;1;Spese correnti;3;Acquisto di beni e servizi;2;Acquisto di servizi;5;Utenze e canoni;5;Acqua;23/09/2019
777;1;0;81,18;81,18;ABBANOA; ;SALDO Fatt.n. 0150020190001886400  del 30/08/2019 B/Bollettazione;23/09/2019;1043;5;146;1;Spese correnti;3;Acquisto di beni e servizi;2;Acquisto di servizi;5;Utenze e canoni;5;Acqua;23/09/2019
778;1;0;58,61;58,61;ABBANOA; ;SALDO Fatt.n. 0150020190001886200  del 30/08/2019 B/Bollettazione;23/09/2019;1476;3;147;1;Spese correnti;3;Acquisto di beni e servizi;1;Acquisto di beni;2;Altri beni di consumo;2;Carburanti, combustibili e lubrificanti;23/09/2019
779;1;0;110,21;524,72;ABBANOA; ;SALDO Fatt.n. 0150020190001886100  del 30/08/2019 B/Bollettazione;23/09/2019;1043;5;148;1;Spese correnti;3;Acquisto di beni e servizi;2;Acquisto di servizi;5;Utenze e canoni;5;Acqua;23/09/2019
779;2;0;414,51;524,72;ABBANOA; ;SALDO Fatt.n. 0150020190001886000  del 30/08/2019 B/Bollettazione;23/09/2019;1043;5;148;1;Spese correnti;3;Acquisto di beni e servizi;2;Acquisto di servizi;5;Utenze e canoni;5;Acqua;23/09/2019
780;1;0;7,7;162,67;ABBANOA; ;SALDO Fatt.n. 0150020190001886600  del 30/08/2019 B/Bollettazione;23/09/2019;1829;1;149;1;Spese correnti;3;Acquisto di beni e servizi;1;Acquisto di beni;2;Altri beni di consumo;2;Carburanti, combustibili e lubrificanti;23/09/2019
780;2;0;154,97;162,67;ABBANOA; ;SALDO Fatt.n. 0150020190001886700  del 30/08/2019 B/Bollettazione;23/09/2019;1829;1;149;1;Spese correnti;3;Acquisto di beni e servizi;1;Acquisto di beni;2;Altri beni di consumo;2;Carburanti, combustibili e lubrificanti;23/09/2019
781;1;0;59,87;59,87;ABBANOA; ;SALDO Fatt.n. 0150020190001885900  del 30/08/2019 B/Bollettazione;23/09/2019;1690;1;150;1;Spese correnti;3;Acquisto di beni e servizi;2;Acquisto di servizi;5;Utenze e canoni;4;Energia elettrica;23/09/2019
782;1;0;1.913,67;1.913,67;GLOBAL POWER;ZD9273DFBF;ACCONTO Fatt.n. V0/130646  del 01/09/2019 Fattura Energia Elettrica;24/09/2019;1937;1;53;1;Spese correnti;3;Acquisto di beni e servizi;2;Acquisto di servizi;5;Utenze e canoni;4;Energia elettrica;24/09/2019
783;1;0;421,01;421,01;GLOBAL POWER;ZD9273DFBF;SALDO Fatt.n. V0/130646  del 01/09/2019 Fattura Energia Elettrica;24/09/2019;1937;1;53;1;Spese correnti;3;Acquisto di beni e servizi;2;Acquisto di servizi;5;Utenze e canoni;4;Energia elettrica;24/09/2019
784;1;0;1.280,26;1.280,26;GLOBAL POWER;ZD9273DFBF;ACCONTO Fatt.n. V0/130647  del 01/09/2019 Fattura Energia Elettrica;24/09/2019;1937;1;53;1;Spese correnti;3;Acquisto di beni e servizi;2;Acquisto di servizi;5;Utenze e canoni;4;Energia elettrica;24/09/2019
785;1;0;281,66;281,66;GLOBAL POWER;ZD9273DFBF;SALDO Fatt.n. V0/130647  del 01/09/2019 Fattura Energia Elettrica;24/09/2019;1937;1;53;1;Spese correnti;3;Acquisto di beni e servizi;2;Acquisto di servizi;5;Utenze e canoni;4;Energia elettrica;24/09/2019
786;1;0;1;2;BANCO SARDEGNA;ZD9273DFBF;SPESE TESORERIA;24/09/2019;1054;0;0;1;Spese correnti;3;Acquisto di beni e servizi;2;Acquisto di servizi;17;Servizi finanziari;2;Oneri per servizio di tesoreria;24/09/2019
786;2;0;1;2;BANCO SARDEGNA;ZD9273DFBF;SPESE TESORERIA;24/09/2019;1054;0;0;1;Spese correnti;3;Acquisto di beni e servizi;2;Acquisto di servizi;17;Servizi finanziari;2;Oneri per servizio di tesoreria;24/09/2019
787;1;0;1.586,00;1.586,00;DITTA GASPARI;Z362899B1D;SALDO Fatt.n. 16714/S  del 27/09/2019;30/09/2019;1043;3;104;1;Spese correnti;3;Acquisto di beni e servizi;2;Acquisto di servizi;4;Acquisto di servizi per formazione e addestramento del personale dell'ente;4;Acquisto di servizi per formazione obbligatoria;30/09/2019
788;1;0;300;300;COMUNE DI LADISPOLI; ;RIVERSAMENTO SOMME IMU 2014 ALAIMO SALVATORE;30/09/2019;1029;0;151;1;Spese correnti;4;Trasferimenti correnti;2;Trasferimenti correnti a Famiglie;2;Interventi assistenziali;999;Altri assegni e sussidi assistenziali;30/09/2019
790;1;0;300;300;OMESSO NOMINATIVO NEL RISPETTO DELLA NORMATIVA SULLA PROTEZIONE DATI PERSONALI; ;CONTRIBUTO STRAORDINARIO UTENTE IN DIFFICOLTA';30/09/2019;1935;0;154;1;Spese correnti;4;Trasferimenti correnti;2;Trasferimenti correnti a Famiglie;2;Interventi assistenziali;999;Altri assegni e sussidi assistenziali;30/09/2019
791;1;0;100;100;OMESSO NOMINATIVO NEL RISPETTO DELLA NORMATIVA SULLA PROTEZIONE DATI PERSONALI; ;CONTRIBUTO STRAORDINARIO;30/09/2019;1935;0;156;1;Spese correnti;4;Trasferimenti correnti;2;Trasferimenti correnti a Famiglie;2;Interventi assistenziali;999;Altri assegni e sussidi assistenziali;30/09/2019
793;1;0;10.000,00;10.000,00;GRUPPO SPORTIVO ANGLONA LAERRU; ;CONTRIBUTO STAGIONE 2019/2020;30/09/2019;1830;0;159;1;Spese correnti;4;Trasferimenti correnti;4;Trasferimenti correnti a Istituzioni Sociali Private;1;Trasferimenti correnti a Istituzioni Sociali Private;1;Trasferimenti correnti a Istituzioni Sociali Private;30/09/2019
